bitfinex/quotes_BTCUSD_20220306
["timestamp","ask_amount","ask_price","bid_price","bid_amount"]
[1646564645214,0.01307,38211.0,38195.0,0.00088488]
[1646564645215,0.391206,38201.0,38195.0,0.00088488]
[1646564645419,0.391206,38201.0,38193.0,9.536e-05]
[1646564645420,0.158246,38199.0,38193.0,9.536e-05]
[1646564645613,0.158246,38199.0,38195.0,0.00088488]
[1646564645614,0.391206,38197.0,38195.0,0.00088488]
[1646564645813,0.59173054,38196.0,38195.0,0.00088488]
[1646564646514,0.59173054,38196.0,38193.0,9.536e-05]
[1646564646713,0.391206,38195.0,38193.0,9.536e-05]
[1646564646914,0.59173054,38194.0,38193.0,9.536e-05]
[1646564647364,0.01308,38199.0,38192.0,0.00088495]
[1646564647365,0.391206,38193.0,38192.0,0.00088495]
[1646564647767,0.391206,38193.0,38190.0,0.002]
[1646564647972,0.53348454,38192.0,38190.0,0.002]
[1646564648180,0.59173054,38191.0,38190.0,0.002]
[1646564648766,0.59173054,38191.0,38189.0,0.00089781]
[1646564648967,0.59173054,38191.0,38178.0,0.07496857]
[1646564649170,0.43348454,38190.0,38187.0,0.00089786]
[1646564649369,0.391206,38189.0,38187.0,0.00089786]
[1646564650169,0.1,38192.0,38184.0,0.18382654]
[1646564650368,0.1,38192.0,38184.0,0.25524079]
[1646564650671,0.391206,38193.0,38184.0,0.18472446]
[1646564650868,0.391206,38193.0,38184.0,0.18450893]
[1646564651142,0.1,38192.0,38184.0,0.18450893]
[1646564651339,0.1,38192.0,38184.0,0.18361101]
[1646564651542,0.391206,38191.0,38185.0,0.00089509]
[1646564651741,0.01308,38195.0,38185.0,0.00089509]
[1646564651742,0.01308,38195.0,38186.0,0.02611]
[1646564651943,0.4337019,38202.0,38187.0,0.417316]
[1646564651944,0.00021736,38202.0,38187.0,0.417316]
[1646564652142,0.00021736,38202.0,38189.0,9.426e-05]
[1646564652339,0.00021736,38202.0,38194.0,0.19742802]
[1646564652540,0.01308,38201.0,38194.0,0.19742802]
[1646564652739,0.158246,38200.0,38194.0,0.19742802]
[1646564652940,0.0002174,38202.0,38194.0,0.19742802]
[1646564653140,0.0002174,38202.0,38195.0,0.0595619]
[1646564653740,0.04812351,38204.0,38195.0,0.0595619]
[1646564653939,0.04812351,38204.0,38199.0,0.15330668]
[1646564654140,0.43591607,38210.0,38199.0,0.15330668]
[1646564654141,0.00021741,38202.0,38199.0,0.15330668]
[1646564654341,0.00021741,38202.0,38201.0,0.21514588]
[1646564654541,0.39142341,38202.0,38195.0,0.00089486]
[1646564654975,0.391206,38202.0,38195.0,0.00089486]
[1646564655273,0.391206,38202.0,38184.0,0.56917649]
[1646564655274,0.391206,38202.0,38185.0,0.44655454]
[1646564655474,0.39142342,38202.0,38195.0,0.00089547]
[1646564655881,0.04812351,38199.0,38195.0,0.00089547]
[1646564656079,0.391206,38198.0,38195.0,0.00089547]
[1646564656275,0.391206,38198.0,38189.0,0.00409426]
[1646564656476,0.158246,38194.0,38189.0,0.00409426]
[1646564656876,0.158246,38194.0,38189.0,9.426e-05]
[1646564657276,0.158246,38194.0,38188.0,0.18309829]
[1646564657681,0.158246,38194.0,38188.0,0.18399393]
[1646564657878,0.158246,38194.0,38188.0,0.17830653]
[1646564658078,0.158246,38194.0,38188.0,0.00089564]
[1646564658484,0.169346,38194.0,38188.0,0.00089564]
[1646564658732,0.0111,38194.0,38186.0,0.17985803]
[1646564658930,0.0111,38194.0,38187.0,0.00095149]
[1646564659133,0.391206,38193.0,38190.0,0.18049259]
[1646564659329,0.158246,38193.0,38190.0,0.18049259]
[1646564659532,0.0111,38194.0,38187.0,0.00095149]
[1646564659731,0.0111,38194.0,38186.0,0.17985803]
[1646564659931,0.0111,38194.0,38186.0,0.15878262]
[1646564660133,0.391206,38193.0,38188.0,0.00095148]
[1646564660431,0.0111,38194.0,38188.0,0.00095148]
[1646564660633,0.391206,38193.0,38188.0,0.00095148]
[1646564660934,0.0111,38194.0,38192.0,0.20754982]
[1646564661142,0.0111,38194.0,38184.0,0.05702096]
[1646564661332,0.0111,38194.0,38187.0,0.00095151]
[1646564661531,0.391206,38193.0,38187.0,0.00195151]
[1646564661732,0.391206,38193.0,38187.0,0.20664018]
[1646564662132,0.391206,38193.0,38189.0,0.18809679]
[1646564662368,0.391206,38193.0,38189.0,0.18819194]
[1646564662967,0.158246,38193.0,38189.0,0.18819194]
[1646564663166,0.391206,38192.0,38189.0,0.18819194]
[1646564663367,0.391206,38193.0,38189.0,0.18819194]
[1646564663567,0.0111,38194.0,38189.0,0.18819194]
[1646564663771,0.391206,38193.0,38189.0,0.18819194]
[1646564663970,0.0111,38194.0,38189.0,0.18819194]
[1646564664370,0.391206,38193.0,38189.0,0.18819194]
[1646564665772,0.391206,38193.0,38189.0,9.515e-05]
[1646564666229,0.158246,38191.0,38189.0,9.515e-05]
[1646564666426,0.82267816,38190.0,38189.0,9.515e-05]
[1646564666624,0.84878816,38190.0,38189.0,9.515e-05]
[1646564666824,0.94878816,38190.0,38189.0,9.515e-05]
[1646564667222,0.92267816,38190.0,38189.0,9.515e-05]
[1646564668028,0.158246,38189.0,38188.0,0.00042946]
[1646564668225,0.72890816,38189.0,38188.0,0.00042946]
[1646564668528,0.72890816,38189.0,38186.0,0.00089828]
[1646564668727,0.01308,38188.0,38186.0,0.00089828]
[1646564668929,1.212616,38187.0,38186.0,0.00089828]
[1646564669132,1.72962816,38187.0,38186.0,0.00089828]
[1646564669326,1.82962816,38187.0,38186.0,0.00089828]
[1646564669527,1.03432816,38187.0,38172.0,0.15677648]
[1646564669726,0.02611,38185.0,38183.0,0.00089505]
[1646564669983,0.197436,38184.0,38183.0,0.00089505]
[1646564670191,0.271326,38184.0,38183.0,0.00089505]
[1646564670582,0.271326,38184.0,38176.0,0.06798268]
[1646564670583,0.1,38184.0,38176.0,0.06798268]
[1646564670781,0.01308,38191.0,38172.0,0.15677648]
[1646564670985,0.01308,38192.0,38180.0,0.00089512]
[1646564671182,0.391206,38191.0,38185.0,0.1817659]
[1646564671586,0.158246,38189.0,38185.0,0.1817659]
[1646564671786,0.02611,38186.0,38176.0,0.00478447]
[1646564671983,0.02611,38186.0,38179.0,0.00014322]
[1646564671984,0.417316,38183.0,38179.0,0.00014322]
[1646564672185,0.158246,38181.0,38179.0,0.00014322]
[1646564672384,0.58971816,38181.0,38179.0,0.00014322]
[1646564672583,0.82267816,38180.0,38179.0,0.00014322]
[1646564672786,0.391206,38180.0,38179.0,0.00014322]
[1646564672984,0.391206,38180.0,38174.0,0.20691089]
[1646564673184,0.53147216,38179.0,38174.0,0.20691089]
[1646564673387,0.1,38179.0,38176.0,0.18997776]
[1646564673622,0.82267816,38178.0,38176.0,0.00089594]
[1646564673825,0.391206,38178.0,38176.0,0.00089594]
[1646564674229,0.391206,38178.0,38170.0,0.06869067]
[1646564674425,0.43147216,38177.0,38175.0,0.21224814]
[1646564674625,0.43932951,38178.0,38173.0,0.000896]
[1646564674824,0.391206,38178.0,38173.0,0.000896]
[1646564675025,0.1,38179.0,38176.0,0.20692497]
[1646564675226,0.1,38186.0,38176.0,0.20692497]
[1646564675427,0.04812351,38188.0,38179.0,0.05635898]
[1646564675626,0.26806996,38202.0,38179.0,0.05635898]
[1646564675627,0.43147216,38190.0,38179.0,0.05635898]
[1646564675826,0.01309,38193.0,38179.0,0.05635898]
[1646564676026,0.04812351,38192.0,38184.0,0.2040833]
[1646564676227,0.44455216,38191.0,38179.0,0.05635898]
[1646564676426,0.44455216,38191.0,38174.0,0.00089599]
[1646564676634,0.44455216,38191.0,38180.0,0.18501224]
[1646564676635,0.04812351,38189.0,38180.0,0.18501224]
[1646564676832,0.391206,38188.0,38180.0,0.18501224]
[1646564677031,0.43147216,38187.0,38181.0,0.00089565]
[1646564677227,0.42647216,38187.0,38181.0,0.00089565]
[1646564677873,0.42647216,38187.0,38178.0,0.15678142]
[1646564678072,0.391206,38189.0,38182.0,0.15377297]
[1646564678272,0.04812351,38190.0,38182.0,0.15377297]
[1646564678273,0.158246,38187.0,38182.0,0.15377297]
[1646564678473,0.43147216,38189.0,38182.0,0.15377297]
[1646564678670,0.391206,38188.0,38182.0,0.15377297]
[1646564678875,0.391206,38188.0,38182.0,0.14808557]
[1646564679175,0.44455216,38191.0,38182.0,0.14808557]
[1646564679475,0.391206,38190.0,38182.0,0.14808557]
[1646564679672,0.44455216,38189.0,38182.0,0.14808557]
[1646564679873,0.391206,38188.0,38181.0,0.00089565]
[1646564680071,0.158246,38186.0,38181.0,0.00089565]
[1646564680272,0.158246,38186.0,38178.0,0.15678142]
[1646564680471,0.1,38186.0,38181.0,0.0008957]
[1646564680671,0.391206,38185.0,38181.0,0.0008957]
[1646564680974,0.391206,38185.0,38178.0,0.30392132]
[1646564681217,0.82267816,38185.0,38178.0,0.30392132]
[1646564681419,0.43147216,38185.0,38178.0,0.30392132]
[1646564681824,0.1,38184.0,38178.0,0.30392132]
[1646564682622,0.1,38184.0,38178.0,0.15160171]
[1646564683222,0.44455216,38188.0,38178.0,0.15160171]
[1646564683623,0.43147216,38188.0,38181.0,0.15362744]
[1646564683824,0.54455216,38190.0,38181.0,0.15362744]
[1646564684023,0.02611,38189.0,38181.0,0.15362744]
[1646564684223,0.00021975,38185.0,38181.0,0.15362744]
[1646564684626,0.00021975,38185.0,38179.0,0.0010368]
[1646564684875,0.00021975,38185.0,38180.0,0.0732797]
[1646564685076,0.1,38187.0,38178.0,0.15160171]
[1646564685276,0.00021975,38185.0,38178.0,0.15263854]
[1646564685677,0.00021975,38185.0,38181.0,0.19944127]
[1646564686277,0.391206,38187.0,38181.0,0.19944127]
[1646564686476,0.391206,38187.0,38179.0,0.00219954]
[1646564686477,0.00021975,38185.0,38179.0,0.00219954]
[1646564687476,0.1,38186.0,38179.0,0.00116274]
[1646564687681,0.86953351,38181.0,38178.0,0.00103683]
[1646564687880,0.07423351,38179.0,38178.0,0.00103683]
[1646564688079,0.89691167,38179.0,38178.0,0.00103683]
[1646564688378,0.99691167,38179.0,38178.0,0.00103683]
[1646564688624,0.02611,38175.0,38173.0,0.006]
[1646564688824,0.23247951,38174.0,38161.0,0.01308]
[1646564689024,0.04812351,38171.0,38170.0,0.00016593]
[1646564689226,0.76395167,38171.0,38170.0,0.00016593]
[1646564689726,0.73784167,38171.0,38170.0,0.00016593]
[1646564689931,0.7953,38170.0,38157.0,0.01131734]
[1646564690227,0.04812351,38168.0,38167.0,0.00103714]
[1646564690426,0.391206,38168.0,38167.0,0.00103714]
[1646564690626,0.386206,38168.0,38167.0,0.00103714]
[1646564690827,0.04812351,38178.0,38167.0,0.21918936]
[1646564691030,0.04812351,38178.0,38176.0,0.18814537]
[1646564691031,0.11846748,38178.0,38176.0,0.18814537]
[1646564691228,1.2748,38189.0,38171.0,0.391277]
[1646564691229,0.11846748,38180.0,38171.0,0.391277]
[1646564691429,0.41942579,38188.0,38171.0,0.391277]
[1646564691430,0.43147216,38179.0,38171.0,0.391277]
[1646564691628,0.002,38179.0,38167.0,0.21815222]
[1646564691829,0.002,38179.0,38173.0,0.16232112]
[1646564692029,0.002,38179.0,38176.0,0.05351498]
[1646564692230,0.002,38179.0,38161.0,0.12590024]
[1646564692488,0.002,38179.0,38162.0,0.391277]
[1646564692681,0.002,38179.0,38172.0,1.2]
[1646564692979,0.002,38179.0,38173.0,0.49293796]
[1646564693179,0.002,38179.0,38175.0,0.391277]
[1646564693376,0.002,38179.0,38177.0,0.391213]
[1646564693577,0.04812351,38192.0,38187.0,0.17559646]
[1646564693777,0.391213,38191.0,38187.0,0.17559646]
[1646564693976,0.04812351,38192.0,38187.0,0.17559646]
[1646564694178,0.01309,38193.0,38187.0,0.17559646]
[1646564694380,0.0111,38189.0,38187.0,0.17559646]
[1646564694578,0.0111,38189.0,38188.0,0.391213]
[1646564694778,0.0111,38189.0,38188.0,0.45352568]
[1646564694977,0.0111,38189.0,38188.0,0.55472758]
[1646564695182,0.0111,38189.0,38188.0,0.16351458]
[1646564695380,0.01308,38197.0,38189.0,1.2]
[1646564695579,0.01308,38201.0,38190.0,0.391213]
[1646564695779,0.04812351,38202.0,38189.0,1.2]
[1646564695979,0.2131038,38206.0,38196.0,0.06913523]
[1646564695980,0.01308,38206.0,38196.0,0.06913523]
[1646564696220,0.01308,38206.0,38201.0,0.16067899]
[1646564696422,0.14851092,38207.0,38201.0,0.16067899]
[1646564696423,0.153453,38205.0,38201.0,0.16067899]
[1646564696624,0.06119351,38211.0,38201.0,0.16067899]
[1646564696821,0.29629836,38214.0,38203.0,0.06364335]
[1646564696822,0.13153748,38212.0,38203.0,0.06364335]
[1646564697033,0.17783088,38214.0,38201.0,0.16067899]
[1646564697034,0.49266567,38213.0,38201.0,0.16067899]
[1646564697324,0.01307,38213.0,38210.0,0.21415625]
[1646564697525,0.04922351,38216.0,38214.0,0.15528563]
[1646564697526,0.43147216,38215.0,38214.0,0.15528563]
[1646564697728,0.04922351,38216.0,38214.0,0.15528563]
[1646564697921,0.04922351,38216.0,38197.0,0.10587649]
[1646564697922,0.391213,38215.0,38203.0,1.89348553]
[1646564698122,0.04812351,38215.0,38203.0,1.89348553]
[1646564698322,0.04812351,38214.0,38203.0,1.89348553]
[1646564698722,0.04812351,38214.0,38209.0,0.18300573]
[1646564698922,0.0011,38216.0,38212.0,0.18550729]
[1646564699525,0.0011,38216.0,38215.0,0.05956075]
[1646564699728,0.0011,38216.0,38215.0,0.391213]
[1646564699978,0.00131979,38216.0,38215.0,0.59169289]
[1646564700177,0.00131979,38216.0,38212.0,0.18550729]
[1646564700578,0.0011,38216.0,38212.0,0.18550729]
[1646564700778,0.43257216,38216.0,38212.0,0.18550729]
[1646564700978,0.390936,38215.0,38205.0,0.06602948]
[1646564701179,0.43147216,38214.0,38208.0,0.20116906]
[1646564701383,0.00131979,38216.0,38208.0,0.20116906]
[1646564701584,0.43279195,38216.0,38208.0,0.20116906]
[1646564701883,0.43257216,38216.0,38208.0,0.19509365]
[1646564702085,0.43257216,38216.0,38210.0,0.20776599]
[1646564702086,0.00021979,38214.0,38210.0,0.20776599]
[1646564702282,0.04812351,38213.0,38210.0,0.20776599]
[1646564702884,0.00021979,38214.0,38210.0,0.20776599]
[1646564703081,0.0011,38216.0,38210.0,0.20776599]
[1646564703281,0.04812351,38213.0,38210.0,0.20776599]
[1646564703643,0.0483433,38213.0,38210.0,0.20776599]
[1646564704143,0.00021979,38213.0,38210.0,0.20776599]
[1646564704343,0.390936,38214.0,38210.0,0.20776599]
[1646564704542,0.0483433,38213.0,38210.0,0.20776599]
[1646564704743,0.0483433,38213.0,38209.0,0.005]
[1646564704944,0.0483433,38213.0,38203.0,0.07226478]
[1646564705148,0.00021979,38213.0,38204.0,0.390936]
[1646564705549,0.1,38215.0,38200.0,0.452]
[1646564705750,0.0011,38216.0,38200.0,0.452]
[1646564705751,0.04812351,38205.0,38200.0,0.005]
[1646564705949,0.82240816,38204.0,38200.0,0.005]
[1646564706146,0.04812351,38203.0,38200.0,0.005]
[1646564706347,0.43147216,38202.0,38200.0,0.005]
[1646564706545,0.04812351,38201.0,38200.0,0.005]
[1646564706746,0.47959567,38201.0,38200.0,0.005]
[1646564706945,0.47959567,38201.0,38194.0,0.190278]
[1646564707776,0.43147216,38201.0,38194.0,0.190278]
[1646564707976,0.04812351,38200.0,38194.0,0.190278]
[1646564708180,0.00021979,38199.0,38194.0,0.190278]
[1646564708477,0.00021979,38199.0,38194.0,0.34806846]
[1646564708877,0.00021979,38199.0,38194.0,0.190278]
[1646564709078,0.04812351,38198.0,38194.0,0.190278]
[1646564709280,0.00020721,38198.0,38194.0,0.190278]
[1646564709583,0.04812351,38195.0,38194.0,0.190278]
[1646564709779,0.04812351,38195.0,38188.0,0.006]
[1646564709985,0.390936,38192.0,38188.0,0.006]
[1646564710181,0.15946,38190.0,38188.0,0.006]
[1646564710382,0.04812351,38189.0,38188.0,0.006]
[1646564710683,0.43905951,38189.0,38188.0,0.006]
[1646564711120,0.46516951,38189.0,38188.0,0.006]
[1646564711522,0.43905951,38189.0,38188.0,0.006]
[1646564711724,0.1,38191.0,38190.0,0.19502337]
[1646564711923,0.00521918,38194.0,38186.0,0.20375557]
[1646564711924,0.00521918,38194.0,38187.0,0.06358168]
[1646564712124,0.00521918,38194.0,38186.0,0.20375557]
[1646564712322,0.390936,38193.0,38192.0,0.17465931]
[1646564712523,0.00521918,38194.0,38192.0,0.17465931]
[1646564712724,0.04812351,38193.0,38192.0,0.17465931]
[1646564712925,0.43905951,38193.0,38192.0,0.17465931]
[1646564713123,0.04812351,38193.0,38192.0,0.17465931]
[1646564713326,0.15946,38192.0,38189.0,0.0009993]
[1646564713524,0.45758216,38192.0,38189.0,0.0009993]
[1646564713928,0.45758216,38192.0,38186.0,0.001]
[1646564714125,0.390936,38191.0,38186.0,0.001]
[1646564714324,0.43147216,38190.0,38187.0,0.00099935]
[1646564714525,0.43147216,38192.0,38189.0,0.15891992]
[1646564714724,0.390936,38191.0,38189.0,0.15891992]
[1646564714978,0.15946,38190.0,38189.0,0.15891992]
[1646564715172,0.01308,38191.0,38189.0,0.15891992]
[1646564715373,0.390936,38190.0,38189.0,0.15891992]
[1646564715573,0.01308,38191.0,38189.0,0.15891992]
[1646564716373,0.15946,38190.0,38188.0,0.001]
[1646564716772,0.0394092,38192.0,38188.0,0.001]
[1646564716773,0.18557,38189.0,38188.0,0.001]
[1646564716973,0.18557,38189.0,38186.0,0.0009859]
[1646564717173,0.04812351,38188.0,38186.0,0.0009859]
[1646564717372,0.1132992,38192.0,38186.0,0.0009859]
[1646564717373,0.43147216,38191.0,38186.0,0.0009859]
[1646564717574,0.15946,38187.0,38183.0,0.16948264]
[1646564717774,0.390936,38189.0,38183.0,0.17046861]
[1646564717974,0.04812351,38189.0,38183.0,0.17046861]
[1646564718632,0.07423351,38189.0,38183.0,0.17046861]
[1646564718827,0.46516951,38187.0,38183.0,0.16948264]
[1646564719127,0.00021918,38191.0,38183.0,0.16948264]
[1646564719326,0.1,38186.0,38183.0,0.16948264]
[1646564719927,0.04812351,38187.0,38183.0,0.16948264]
[1646564720328,0.14812351,38189.0,38183.0,0.16948264]
[1646564720529,0.04812351,38188.0,38183.0,0.16948264]
[1646564720728,0.47959567,38188.0,38183.0,0.16948264]
[1646564720929,0.04812351,38188.0,38183.0,0.16379524]
[1646564721134,0.1,38189.0,38183.0,0.16379524]
[1646564721532,0.04834269,38191.0,38185.0,0.06998369]
[1646564721732,0.04834269,38191.0,38183.0,0.16379524]
[1646564722036,0.04834269,38191.0,38190.0,0.19994272]
[1646564722232,0.00021918,38191.0,38190.0,0.19994272]
[1646564722505,0.43147216,38198.0,38196.0,0.1582882]
[1646564722697,0.04812351,38205.0,38197.0,0.18766832]
[1646564722895,0.43147216,38204.0,38197.0,0.18766832]
[1646564723097,0.43147216,38204.0,38197.0,0.18159291]
[1646564723297,0.390936,38203.0,38197.0,0.18159291]
[1646564723596,0.390936,38203.0,38186.0,0.2976]
[1646564723597,0.04812351,38200.0,38194.0,0.16640435]
[1646564723798,0.04812351,38200.0,38191.0,0.004]
[1646564724297,0.43147216,38199.0,38191.0,0.004]
[1646564724493,0.390936,38198.0,38197.0,0.18151759]
[1646564725096,0.82240816,38198.0,38189.0,0.00098583]
[1646564725298,0.02611,38196.0,38189.0,0.00098583]
[1646564725497,0.04812351,38191.0,38189.0,0.00098583]
[1646564725696,0.15946,38190.0,38189.0,0.00098583]
[1646564725898,0.15946,38190.0,38185.0,0.003]
[1646564726124,0.390936,38190.0,38188.0,0.19821833]
[1646564726329,0.43147216,38191.0,38188.0,0.19821833]
[1646564726526,0.15946,38191.0,38188.0,0.19821833]
[1646564726728,0.0002192,38192.0,38186.0,0.0009859]
[1646564726729,0.390936,38188.0,38186.0,0.0009859]
[1646564727127,0.390936,38188.0,38181.0,0.19339647]
[1646564727327,0.04812351,38189.0,38176.0,0.06932491]
[1646564727627,0.01308,38194.0,38183.0,0.00098597]
[1646564727628,0.417046,38185.0,38183.0,0.00098597]
[1646564727829,0.15946,38184.0,38183.0,0.00098597]
[1646564728327,0.390936,38184.0,38177.0,0.20325551]
[1646564728527,0.04812351,38185.0,38177.0,0.20325551]
[1646564728728,0.04812351,38185.0,38180.0,0.00098606]
[1646564728934,0.1,38186.0,38180.0,0.00098606]
[1646564729128,0.14812351,38186.0,38180.0,0.00098606]
[1646564729332,0.04812351,38183.0,38180.0,0.20719522]
[1646564729530,0.04812351,38183.0,38182.0,0.01399133]
[1646564730380,0.00021916,38191.0,38182.0,0.01399133]
[1646564730575,0.00021916,38191.0,38179.0,0.00098608]
[1646564730576,0.04812351,38183.0,38179.0,0.00098608]
[1646564730778,0.04812351,38187.0,38182.0,0.01399133]
[1646564730979,0.04834269,38191.0,38183.0,0.00098599]
[1646564731179,0.04834269,38191.0,38184.0,0.390936]
[1646564731484,0.00021918,38191.0,38185.0,0.16691146]
[1646564731679,0.00021918,38191.0,38186.0,0.390936]
[1646564731878,0.02611,38201.0,38187.0,0.15846261]
[1646564732079,0.02111,38201.0,38193.0,0.38534784]
[1646564732277,0.02111,38200.0,38181.0,0.003]
[1646564732479,0.00021919,38191.0,38184.0,0.00098595]
[1646564732777,0.00021919,38191.0,38187.0,2.13686407]
[1646564733180,0.390936,38203.0,38187.0,2.13686407]
[1646564733377,0.15946,38201.0,38193.0,0.18244494]
[1646564733834,0.18557,38201.0,38193.0,0.18244494]
[1646564734037,0.04812351,38197.0,38193.0,0.18244494]
[1646564734435,0.390936,38196.0,38195.0,0.19881613]
[1646564734837,0.0483427,38197.0,38193.0,0.18244494]
[1646564735035,0.0483427,38197.0,38193.0,0.18222941]
[1646564735235,0.390936,38196.0,38193.0,0.18222941]
[1646564735435,0.00021919,38197.0,38189.0,0.00098583]
[1646564735636,0.04812351,38197.0,38187.0,0.06586618]
[1646564735836,0.390936,38195.0,38192.0,0.15830953]
[1646564736335,0.00021919,38196.0,38189.0,0.20501552]
[1646564736539,0.15946,38195.0,38189.0,0.20501552]
[1646564736736,0.390936,38195.0,38189.0,0.20402969]
[1646564736938,0.87069767,38194.0,38180.0,0.01308]
[1646564737237,0.391102,38193.0,38189.0,0.00098583]
[1646564737488,0.43147216,38192.0,38189.0,0.00098583]
[1646564737780,0.158841,38191.0,38189.0,0.00098583]
[1646564737980,0.43147216,38192.0,38186.0,0.17734605]
[1646564738182,0.1,38193.0,38186.0,0.17734605]
[1646564738380,0.00020677,38192.0,38187.0,0.00098588]
[1646564738781,0.04812351,38191.0,38187.0,0.00098588]
[1646564739185,0.04812351,38191.0,38186.0,0.17734605]
[1646564739380,0.04833028,38191.0,38186.0,0.17734605]
[1646564739784,0.00020677,38191.0,38189.0,0.391102]
[1646564739983,0.00020677,38191.0,38188.0,0.07368774]
[1646564740184,0.00020677,38191.0,38189.0,0.391102]
[1646564740382,0.47959567,38197.0,38189.0,0.391102]
[1646564740584,0.04812351,38197.0,38188.0,0.07368774]
[1646564740882,0.04812351,38197.0,38195.0,0.16931539]
[1646564741131,0.04812351,38197.0,38186.0,0.00098591]
[1646564741132,0.43147216,38196.0,38186.0,0.00098591]
[1646564741531,0.06120351,38197.0,38186.0,0.00098591]
[1646564741737,0.43147216,38196.0,38191.0,0.21122838]
[1646564742032,0.0002192,38193.0,38183.0,0.38640047]
[1646564742231,0.0002192,38193.0,38192.0,0.16321495]
[1646564742832,0.43147216,38196.0,38192.0,0.16321495]
[1646564743030,0.391099,38195.0,38192.0,0.16321495]
[1646564743231,0.01308,38198.0,38192.0,0.16321495]
[1646564743433,0.04812351,38197.0,38192.0,0.16321495]
[1646564743632,0.43147216,38196.0,38192.0,0.16321495]
[1646564744132,0.43147216,38196.0,38192.0,0.15713954]
[1646564744133,0.00020811,38196.0,38192.0,0.15713954]
[1646564745178,0.02611,38202.0,38192.0,0.15713954]
[1646564745382,0.00020811,38196.0,38192.0,0.23042542]
[1646564745580,0.01631811,38202.0,38191.0,0.20812934]
[1646564745778,0.21166951,38199.0,38191.0,0.20812934]
[1646564745980,0.163546,38199.0,38191.0,0.20812934]
[1646564746177,0.04812351,38197.0,38191.0,0.20812934]
[1646564746778,0.391099,38196.0,38192.0,0.17963796]
[1646564747281,0.491099,38195.0,38180.0,0.43147216]
[1646564747480,0.1,38195.0,38178.0,0.45758216]
[1646564747681,0.095,38195.0,38188.0,0.003]
[1646564748080,0.04812351,38192.0,38188.0,0.003]
[1646564748732,0.391099,38191.0,38188.0,0.003]
[1646564748932,0.04812351,38192.0,38185.0,0.22941718]
[1646564749435,0.04812351,38192.0,38187.0,0.19799494]
[1646564749638,0.04812351,38191.0,38185.0,0.1643638]
[1646564750035,0.04812351,38189.0,38185.0,0.1643638]
[1646564750634,0.04812351,38189.0,38185.0,0.35074071]
[1646564752379,0.04812351,38189.0,38185.0,0.35011899]
[1646564752981,0.04812351,38192.0,38185.0,0.35011899]
[1646564753181,0.04812351,38192.0,38191.0,0.21971191]
[1646564753381,0.391099,38192.0,38191.0,0.21971191]
[1646564753581,0.43422251,38192.0,38191.0,0.21971191]
[1646564753781,0.53422251,38192.0,38191.0,0.21971191]
[1646564754583,0.391099,38192.0,38191.0,0.21971191]
[1646564754789,0.391099,38192.0,38185.0,0.18637691]
[1646564754985,0.04312351,38190.0,38185.0,0.18637691]
[1646564755183,0.04312351,38190.0,38182.0,0.05275351]
[1646564755784,0.04312351,38190.0,38184.0,0.18609111]
[1646564755984,0.04312351,38190.0,38184.0,0.18587558]
[1646564756233,0.391099,38189.0,38185.0,0.17098132]
[1646564756433,0.391099,38189.0,38184.0,0.18587558]
[1646564756434,0.05620351,38190.0,38184.0,0.18587558]
[1646564756635,0.43147216,38189.0,38184.0,0.18587558]
[1646564756836,0.02611,38188.0,38181.0,0.00093742]
[1646564757034,0.163546,38184.0,38181.0,0.00093742]
[1646564757234,0.12611,38188.0,38173.0,0.001]
[1646564757235,0.391099,38182.0,38173.0,0.001]
[1646564757437,0.04312351,38180.0,38173.0,0.001]
[1646564757633,0.04312351,38180.0,38177.0,0.00015]
[1646564757634,0.391099,38179.0,38177.0,0.00015]
[1646564757832,0.04312351,38180.0,38179.0,0.21537969]
[1646564757833,0.391099,38180.0,38179.0,0.21537969]
[1646564758032,0.04312351,38180.0,38179.0,0.21537969]
[1646564758332,0.04312351,38183.0,38179.0,0.21537969]
[1646564758533,0.391099,38182.0,38179.0,0.21537969]
[1646564758732,0.04312351,38183.0,38179.0,0.21537969]
[1646564758733,0.163546,38180.0,38179.0,0.21537969]
[1646564758933,0.1,38181.0,38176.0,0.00093755]
[1646564759238,0.391099,38179.0,38176.0,0.00093755]
[1646564759434,0.13812351,38181.0,38176.0,0.00093755]
[1646564759632,0.391099,38180.0,38174.0,0.6319927]
[1646564759881,0.391099,38180.0,38174.0,0.6329303]
[1646564760088,0.391099,38180.0,38177.0,0.20343586]
[1646564760582,0.1,38181.0,38177.0,0.20343586]
[1646564760882,0.391099,38180.0,38177.0,0.20343586]
[1646564761281,0.46959567,38181.0,38177.0,0.20343586]
[1646564761780,0.43147216,38181.0,38177.0,0.20343586]
[1646564762181,0.1,38182.0,38177.0,0.20343586]
[1646564762383,0.391099,38183.0,38177.0,0.20343586]
[1646564762590,0.03812351,38180.0,38177.0,0.20343586]
[1646564762786,0.391099,38183.0,38177.0,0.20343586]
[1646564762982,0.43147216,38182.0,38177.0,0.20343586]
[1646564763182,0.20166951,38181.0,38175.0,0.001]
[1646564763381,0.53147216,38182.0,38175.0,0.001]
[1646564763382,0.1,38182.0,38175.0,0.001]
[1646564763630,0.1,38182.0,38176.0,0.00092816]
[1646564764331,0.03812351,38184.0,38176.0,0.00092816]
[1646564764533,0.391099,38182.0,38178.0,0.19718432]
[1646564764731,0.1,38181.0,38178.0,0.19718432]
[1646564765137,0.1,38181.0,38174.0,0.62784547]
[1646564765138,0.163546,38178.0,38174.0,0.62784547]
[1646564765341,0.03812351,38179.0,38174.0,0.62784547]
[1646564765342,0.391099,38177.0,38174.0,0.62784547]
[1646564765535,0.44455216,38180.0,38174.0,0.62784547]
[1646564765735,0.391099,38179.0,38174.0,0.62784547]
[1646564765933,0.163546,38177.0,38174.0,0.62784547]
[1646564766336,0.391099,38179.0,38175.0,0.17588026]
[1646564766935,0.43147216,38178.0,38174.0,0.62784547]
[1646564767134,0.163546,38177.0,38174.0,0.62784547]
[1646564767583,0.163546,38177.0,38175.0,0.00060696]
[1646564767987,0.43147216,38180.0,38175.0,0.00060696]
[1646564768185,0.176626,38179.0,38175.0,0.00060696]
[1646564768383,0.391099,38178.0,38175.0,0.00060696]
[1646564768782,0.01308,38180.0,38175.0,0.00060696]
[1646564768983,0.391099,38179.0,38175.0,0.00060696]
[1646564769284,0.163546,38177.0,38175.0,0.00060696]
[1646564769683,0.03812351,38176.0,38175.0,0.00060696]
[1646564769885,0.86069467,38176.0,38175.0,0.00060696]
[1646564770283,0.52922251,38176.0,38175.0,0.00060696]
[1646564770884,0.96069467,38176.0,38175.0,0.00060696]
[1646564771347,0.98680467,38176.0,38175.0,0.00060696]
[1646564771942,1.87809467,38176.0,38175.0,0.00060696]